Cogmind - Beta 11 X7 @@@ ROGUE MODE // 2021.10.07 @ 20:43:55 Player: weirdfoe Result: Destroyed by H-61 Shepherd with Heavy Assault Cannon Performance ------------- Evolutions (4) 2000 Regions Visited (10) 2000 Robots Destroyed (35) 175 Value Destroyed (1038) 1038 Prototype IDs (3) 60 Alien Tech Used (0) 0 Bonus (-15) -15 TOTAL SCORE: 5258 Bonus ------- Follower Combat Kills 355 Friendly Fire -370 Cogmind --------- Core Integrity 0/850 Matter 300/300 Energy 100/100 System Corruption 0% Temperature Cool (0) Movement Core (50) Location -6/Extension Parts ------- > --- POWER (2) -------- (None) > --- PROPULSION (4) --- (None) > --- UTILITY (7) ------ Improved Targeting Computer > --- WEAPON (2) ------- (None) > --- INVENTORY (5) ---- Wheel Cooling System High-capacity Matter Pod (200) Force Rifle Force Rifle Peak State ------------ > --- POWER ------------ Improved Deuterium Engine Improved Deuterium Engine > --- PROPULSION ------- Carbon-fiber Leg Carbon-fiber Leg Carbon-fiber Leg Carbon-fiber Leg > --- UTILITY ---------- Improved Heat Sink Small Storage Unit Improved Targeting Computer Light Armor Plating Hardened Medium Armor Plating Improved Shock Absorption System > --- WEAPON ----------- Force Rifle Advanced EMP Blaster > --- INVENTORY -------- Wheel Cooling System High-capacity Matter Pod Assault Rifle Assault Rifle Assault Rifle Spear [Rating: 46] Favorites ----------- Power Improved Deuterium Engine Engine Improved Deuterium Engine Propulsion Aluminum Leg Treads Light Treads Leg Aluminum Leg Wheel Wheel Utility Small Storage Unit Device Structural Scanner Storage Small Storage Unit Processor Improved Targeting Computer Protection Light Armor Plating Weapon Assault Rifle Energy Gun Improved Medium Laser Ballistic Gun Assault Rifle Ballistic Cannon Improved Light Cannon Launcher Advanced EMP Blaster Slashing Weapon Dual-blade Saw Piercing Weapon Spear Build | -11 -10 -10 -9 -9 -8 -7 -7 -7 -6 -6 ------- Run | Scr Mat Min Mat Sto Mat Fac Was Fac Fac Ext Slots Evolved 8 | . . . 2 . 2 2 . . 2 . Power 1 | . . . . . . 1 . . . . Propulsion 2 | . . . 2 . . . . . . . Utility 5 | . . . . . 2 1 . . 2 . Weapon . | . . . . . . . . . . . Parts Attached 50 | 6 1 2 2 10 6 8 3 6 3 3 Power 5 | 1 . . . . 1 2 . . 1 . Engine 5 | 1 . . . . 1 2 . . 1 . Core . | . . . . . . . . . . . Reactor . | . . . . . . . . . . . Propulsion 19 | 2 . 2 2 5 1 3 . 4 . . Treads 2 | 2 . . . . . . . . . . Leg 8 | . . 2 2 . . . . 4 . . Wheel 9 | . . . . 5 1 3 . . . . Hover . | . . . . . . . . . . . Flight . | . . . . . . . . . . . Utility 13 | 1 1 . . . 4 2 1 1 2 1 Device 6 | . 1 . . . 2 1 1 . 1 . Storage 1 | 1 . . . . . . . . . . Processor 1 | . . . . . . . . 1 . . Hackware . | . . . . . . . . . . . Protection 5 | . . . . . 2 1 . . 1 1 Artifact . | . . . . . . . . . . . Weapon 13 | 2 . . . 5 . 1 2 1 . 2 Energy Gun 3 | . . . . 2 . . . . . 1 Energy Cannon . | . . . . . . . . . . . Ballistic Gun 4 | 2 . . . 1 . . . 1 . . Ballistic Cannon 3 | . . . . 2 . . 1 . . . Launcher 1 | . . . . . . 1 . . . . Special Weapon . | . . . . . . . . . . . Impact Weapon . | . . . . . . . . . . . Slashing Weapon 1 | . . . . . . . 1 . . . Piercing Weapon 1 | . . . . . . . . . . 1 Special Melee Weapon . | . . . . . . . . . . . Unidentified Prototypes 3 | . . . . 1 . 1 1 . . . Parts Lost 16 | . . . . . 3 . . . . 13 Power 3 | . . . . . 1 . . . . 2 Propulsion 5 | . . . . . 1 . . . . 4 Utility 6 | . . . . . 1 . . . . 5 Weapon 2 | . . . . . . . . . . 2 Highest Loss Streak 13 | . . . . . 2 . . . . 13 Average Slot Usage (%) 92 | . 88 99 100 99 87 96 99 99 90 68 Engine 12 | . 14 14 11 11 7 14 15 15 13 9 Treads 3 | . 28 10 . . . . . . . . Leg 17 | . . 16 44 40 . . . 8 26 18 Wheel 10 | . . . . 2 35 30 30 20 . . Device 11 | . 3 14 11 11 15 7 11 14 10 9 Storage 9 | . 14 14 11 11 9 7 7 7 6 4 Processor 1 | . . . . . . . . . 6 6 Protection 6 | . . . . . 3 19 18 15 13 8 Energy Gun 4 | . . . . 7 18 9 . . . 3 Ballistic Gun 9 | . 28 28 22 10 . . . 6 6 1 Ballistic Cannon 1 | . . . . 4 . . . . . . Launcher 2 | . . . . . . 4 7 7 6 4 Naked Turns . | . . . . . . . . . . . Heaviest Build 53 | 14 15 15 15 17 29 50 53 53 52 53 Greatest Support 60 | 40 40 40 40 40 40 58 58 60 60 60 Greatest Overweight (x) 7 | . . 1 . 5 . . . 3 . 7 Average Overweight (x) . | . . . . . . . . . . . Largest Inventory Capacity 8 | 8 8 8 8 8 8 8 8 8 8 8 Average Capacity 7 | 6 8 8 8 8 8 8 8 8 8 7 Most Carried 8 | 6 8 8 7 8 8 8 8 8 8 8 Average Carried 7 | 3 7 8 6 7 7 7 8 7 7 6 Final Capacity 8 | 8 8 8 8 8 8 8 8 8 8 5 Final Carried 8 | 6 8 8 6 8 6 8 8 8 7 5 Class Distribution -------------------- 64% | Mutant 35% | Scavenger-Mutant Dominant Class ---------------- Mutant | -10/Materials Mutant | -10/Mines Mutant | -9/Materials Mutant | -9/Storage Mutant | -8/Materials Scavenger-Mutant | -7/Factory Scavenger-Mutant | -7/Waste Scavenger-Mutant | -7/Factory Scavenger-Mutant | -6/Factory Scavenger-Mutant | -6/Extension Resources | -11 -10 -10 -9 -9 -8 -7 -7 -7 -6 -6 ----------- Run | Scr Mat Min Mat Sto Mat Fac Was Fac Fac Ext Matter Collected 1207 | 211 . 98 . 546 60 100 60 60 . 72 Remotely . | . . . . . . . . . . . Salvage Created 1527 | . . 70 . 553 304 237 60 56 . 247 Parts 81 | . . 5 . 26 17 8 4 . . 21 Haulers Intercepted 6 | . . . . 4 1 1 . . . . Recyclers Shooed 2 | . . . . . . . . . . 2 Parts Field Recycled . | . . . . . . . . . . . Retrieved Matter . | . . . . . . . . . . . Parts Self-Destructed . | . . . . . . . . . . . Prevented . | . . . . . . . . . . . Kills | -11 -10 -10 -9 -9 -8 -7 -7 -7 -6 -6 ------- Run | Scr Mat Min Mat Sto Mat Fac Was Fac Fac Ext Combat Hostiles Destroyed 23 | . . 2 . 10 4 3 . 1 . 3 Melee 1 | . . . . . . . . . . 1 Guns 14 | . . 2 . 3 4 2 . 1 . 2 Cannons 7 | . . . . 7 . . . . . . Classes Destroyed 7 | . . 1 . 4 . . 1 . . 1 Worker 4 | . . . . 2 2 . . . . . Hauler 6 | . . . . 4 1 1 . . . . Swarmer 2 | . . . . 2 . . . . . . Grunt 11 | . . 2 . 4 2 2 . 1 . . Sentry 9 | . . . . 4 2 1 . . . 2 Behemoth 1 | . . . . . . . . . . 1 Wasp 1 | . . . . . . . 1 . . . Martyr 1 | . . . . . . . 1 . . . Best Kill Streak 3 | . . 2 . 3 2 3 . 1 . 1 Combat Bots Only 2 | . . 2 . 2 2 2 . 1 . 1 Max Kills in Single Turn 2 | . . 1 . 2 1 1 2 1 . 1 Gunslinging . | . . . . . . . . . . . Exploded . | . . . . . . . . . . . Melee 1 | . . . . . . . . . . 1 Uniques/NPCs Destroyed . | . . . . . . . . . . . Combat | -11 -10 -10 -9 -9 -8 -7 -7 -7 -6 -6 -------- Run | Scr Mat Min Mat Sto Mat Fac Was Fac Fac Ext Damage Taken 2836 | . . 55 . 357 210 187 . 27 . 2000 Core 1003 | . . 15 . 92 16 6 . . . 874 Absorbed by Shields . | . . . . . . . . . . . Core Remaining (%) 93 | 100 . 94 . 77 97 . . 99 . . Volleys Fired 137 | . . 5 . 63 18 9 6 5 6 25 Largest 2 | . . 2 . 2 2 2 1 1 1 1 Hottest 112 | . . 40 . 112 112 112 36 28 28 80 Shots Fired 188 | . . 10 . 87 36 13 6 5 6 25 Gun 139 | . . 10 . 48 36 9 . 5 6 25 Cannon 39 | . . . . 39 . . . . . . Launcher 10 | . . . . . . 4 6 . . . Special . | . . . . . . . . . . . Kinetic 82 | . . 10 . 61 . . . 5 6 . Thermal 96 | . . . . 26 36 9 . . . 25 Explosive . | . . . . . . . . . . . Electromagnetic 10 | . . . . . . 4 6 . . . Robot Hit Streak 12 | . . 7 . 7 12 6 2 3 5 9 Robot Miss Streak 4 | . . 1 . 4 2 2 1 1 2 2 Penetration Max 1 | . . . . . . . . 1 . . Secondary Targets . | . . . . . . . . . . . Shots Hit Robots 132 | . . 8 . 57 27 9 3 3 5 20 Core Hits 60 | . . 5 . 21 11 8 5 2 1 7 Critical Kills . | . . . . . . . . . . . Critical Parts Destroyed 1 | . . . . . . . . . . 1 Critical Strikes 9 | . . . . 4 4 . . . . 1 Burn 5 | . . . . 1 4 . . . . . Destroy 1 | . . . . . . . . . . 1 Blast 3 | . . . . 3 . . . . . . Melee Attacks 4 | . . . . . . . . . . 4 Impact . | . . . . . . . . . . . Slashing . | . . . . . . . . . . . Piercing 4 | . . . . . . . . . . 4 Sneak Attacks . | . . . . . . . . . . . Combat Hostiles . | . . . . . . . . . . . Follow-up Attacks . | . . . . . . . . . . . Damage Inflicted 2969 | . . 117 . 1008 474 351 177 105 108 629 Guns 1842 | . . 102 . 453 474 117 . 88 108 500 Cannons 555 | . . . . 555 . . . . . . Explosions 411 | . . . . . . 234 177 . . . Melee 129 | . . . . . . . . . . 129 Ramming 32 | . . 15 . . . . . 17 . . Kinetic 1015 | . . 102 . 717 . . . 88 108 . Thermal 1531 | . . . . 291 474 117 149 . . 500 Explosive . | . . . . . . . . . . . Electromagnetic 262 | . . . . . . 234 28 . . . Impact . | . . . . . . . . . . . Slashing . | . . . . . . . . . . . Piercing 129 | . . . . . . . . . . 129 Highest Corruption 3 | . . . . 3 . . . . . . Average Corruption 2 | . . . . 2 . . . . . . Corruption Purged . | . . . . . . . . . . . Effects 4 | . . . . 4 . . . . . . Matter Fused 1 | . . . . 1 . . . . . . Heat Flow Errors 1 | . . . . 1 . . . . . . Data Loss (minor) 2 | . . . . 2 . . . . . . Overload Shots . | . . . . . . . . . . . Overflow Damage 24 | . . . . 20 . . 4 . . . Projectiles 20 | . . . . 20 . . . . . . Explosions 4 | . . . . . . . 4 . . . Melee . | . . . . . . . . . . . Knockbacks 10 | . . . . 10 . . . . . . Impact . | . . . . . . . . . . . Kinetic 6 | . . . . 6 . . . . . . Secondary 4 | . . . . 4 . . . . . . Self-Inflicted Damage . | . . . . . . . . . . . Shots . | . . . . . . . . . . . Rammed 2 | . 1 1 . . . . . . . . Targets Rammed 6 | . 1 2 . . . . . 3 . . Kicked 4 | . . 1 . . . . . 3 . . Crushed . | . . . . . . . . . . . Highest Temperature 320 | . . 2 . 230 16 54 . . . 320 Average Temperature 86 | . . 2 . 54 10 30 . . . 150 Received Heat Transfer 771 | . . 33 . 165 99 69 . 12 . 393 Effects 2 | . . . . . . . . . . 2 Energy Bleed 1 | . . . . . . . . . . 1 Short Circuit 1 | . . . . . . . . . . 1 Siege Activations . | . . . . . . . . . . . Robots Corrupted 1 | . . . . . . 1 . . . . Combat Hostiles 1 | . . . . . . 1 . . . . Parts Fried 1 | . . . . . . 1 . . . . Impact Corruptions . | . . . . . . . . . . . Robots Melted . | . . . . . . . . . . . Combat Hostiles . | . . . . . . . . . . . Parts Melted 5 | . . . . . 3 1 . . . 1 Heat Transferred 3234 | . . . . 703 1332 259 200 . . 740 Parts Sabotaged . | . . . . . . . . . . . Parts Stolen . | . . . . . . . . . . . Parts Stripped . | . . . . . . . . . . . Power Chain Reactions 1 | . . . . . . . 1 . . . Missiles Intercepted . | . . . . . . . . . . . Alert | -11 -10 -10 -9 -9 -8 -7 -7 -7 -6 -6 ------- Run | Scr Mat Min Mat Sto Mat Fac Was Fac Fac Ext Peak Influence 348 | . . 50 19 348 247 212 131 309 133 65 Initial 133 | . . . 19 7 119 112 74 91 133 65 Average 119 | . . 32 19 172 177 174 113 209 133 41 Maximum Alert Level 1 | . . . . 1 1 1 . 1 . . Low Security (%) 73 | 100 100 100 100 52 58 53 100 31 100 100 Level 1 26 | . . . . 47 41 46 . 68 . . Level 2 . | . . . . . . . . . . . Level 3 . | . . . . . . . . . . . Level 4 . | . . . . . . . . . . . Level 5 . | . . . . . . . . . . . High Security . | . . . . . . . . . . . Max Security . | . . . . . . . . . . . Squads Dispatched 6 | . 1 . . . 1 1 . 2 . 1 Investigation 2 | . . . . . 1 . . . . 1 Extermination 1 | . . . . . . . . 1 . . Reinforcement 3 | . 1 . . . . 1 . 1 . . Assault . | . . . . . . . . . . . Garrison . | . . . . . . . . . . . Intercept . | . . . . . . . . . . . Construction Impeded . | . . . . . . . . . . . Haulers Reinforced 1 | . . . . . . 1 . . . . Active Scanning Responses . | . . . . . . . . . . . Cargo Convoy Interrupts . | . . . . . . . . . . . Stealth | -11 -10 -10 -9 -9 -8 -7 -7 -7 -6 -6 --------- Run | Scr Mat Min Mat Sto Mat Fac Was Fac Fac Ext Distress Signals 8 | . 1 1 . 1 . . . 3 . 2 Communications Jammed . | . . . . . . . . . . . Distress Signals . | . . . . . . . . . . . Times Spotted 47 | . 2 2 . 17 4 3 5 4 . 10 Peak Tracking Total 6 | . 4 2 . 5 2 2 4 4 . 6 Tactical Retreats 4 | . . . . 3 . . . . . 1 Traps | -11 -10 -10 -9 -9 -8 -7 -7 -7 -6 -6 ------- Run | Scr Mat Min Mat Sto Mat Fac Was Fac Fac Ext Traps Triggered 5 | . . . . 2 . 1 . . 2 . Indirectly . | . . . . . . . . . . . Trap Hack Attempts . | . . . . . . . . . . . Triggered . | . . . . . . . . . . . Disarmed . | . . . . . . . . . . . Reprogrammed . | . . . . . . . . . . . Reused . | . . . . . . . . . . . Traps Extracted . | . . . . . . . . . . . Installed . | . . . . . . . . . . . Triggered . | . . . . . . . . . . . Machines | -11 -10 -10 -9 -9 -8 -7 -7 -7 -6 -6 ---------- Run | Scr Mat Min Mat Sto Mat Fac Was Fac Fac Ext Machines Disabled 3 | . . . . 3 . . . . . . Max in Single Turn 1 | . . . . 1 . . . . . . Machines Sabotaged . | . . . . . . . . . . . Garrisons Compromised . | . . . . . . . . . . . Overloaded Fab Kills . | . . . . . . . . . . . Fab Network Shutdowns . | . . . . . . . . . . . Hacking | -11 -10 -10 -9 -9 -8 -7 -7 -7 -6 -6 --------- Run | Scr Mat Min Mat Sto Mat Fac Was Fac Fac Ext Machines Accessed 7 | . . 1 . 2 1 1 . . 1 1 Terminals 7 | . . 1 . 2 1 1 . . 1 1 Fabricators . | . . . . . . . . . . . Repair Stations . | . . . . . . . . . . . Recycling Units . | . . . . . . . . . . . Scanalyzers . | . . . . . . . . . . . Garrison Access . | . . . . . . . . . . . Total Hacks 12 | . . 1 . 3 2 1 . . 2 3 Successful 5 | . . 1 . 1 1 1 . . 1 . Failed 7 | . . . . 2 1 . . . 1 3 Catastrophic 1 | . . . . . 1 . . . . . Database Lockouts . | . . . . . . . . . . . Manual 5 | . . . . 2 2 1 . . . . Terminals 12 | . . 1 . 3 2 1 . . 2 3 Fabricators . | . . . . . . . . . . . Repair Stations . | . . . . . . . . . . . Recycling Units . | . . . . . . . . . . . Scanalyzers . | . . . . . . . . . . . Garrison Access . | . . . . . . . . . . . Terminal Hacks 5 | . . 1 . 1 1 1 . . 1 . Record 1 | . . 1 . . . . . . . . Open Door 2 | . . . . 1 . . . . 1 . Branch Access Points 1 | . . . . . . 1 . . . . Zone Layout 1 | . . . . . 1 . . . . . Fabricator Hacks . | . . . . . . . . . . . Repair Station Hacks . | . . . . . . . . . . . Recycling Unit Hacks . | . . . . . . . . . . . Scanalyzer . | . . . . . . . . . . . Garrison Access Hacks . | . . . . . . . . . . . Unauthorized Hacks . | . . . . . . . . . . . Terminals . | . . . . . . . . . . . Fabricators . | . . . . . . . . . . . Repair Stations . | . . . . . . . . . . . Recycling Units . | . . . . . . . . . . . Scanalyzers . | . . . . . . . . . . . Garrison Access . | . . . . . . . . . . . Data Cores Recovered . | . . . . . . . . . . . Used . | . . . . . . . . . . . Hacking Detections 4 | . . . . 1 1 1 . . . 1 Full Trace Events 2 | . . . . . 1 . . . . 1 Feedback Events . | . . . . . . . . . . . Feedback Blocked . | . . . . . . . . . . . Robot Schematics Acquired . | . . . . . . . . . . . Robots Built . | . . . . . . . . . . . Matter . | . . . . . . . . . . . Time . | . . . . . . . . . . . Total Robot Build Rating . | . . . . . . . . . . . Part Schematics Acquired . | . . . . . . . . . . . Parts Built . | . . . . . . . . . . . Matter . | . . . . . . . . . . . Time . | . . . . . . . . . . . Total Part Build Rating . | . . . . . . . . . . . Parts Repaired . | . . . . . . . . . . . Time . | . . . . . . . . . . . Parts Recycled . | . . . . . . . . . . . Recycled Matter . | . . . . . . . . . . . Retrieved Matter . | . . . . . . . . . . . Retrieved Components . | . . . . . . . . . . . Parts Scanalyzed . | . . . . . . . . . . . Part Schematics Acquired . | . . . . . . . . . . . Parts Damaged . | . . . . . . . . . . . Bothacking | -11 -10 -10 -9 -9 -8 -7 -7 -7 -6 -6 ------------ Run | Scr Mat Min Mat Sto Mat Fac Was Fac Fac Ext Used RIF Installer . | . . . . . . . . . . . Robots Hacked . | . . . . . . . . . . . Non-combat . | . . . . . . . . . . . Combat . | . . . . . . . . . . . Robot Hacks Applied . | . . . . . . . . . . . Relay Couplers Released . | . . . . . . . . . . . Robots Rewired . | . . . . . . . . . . . Allies Hacked . | . . . . . . . . . . . Hacks Repelled . | . . . . . . . . . . . Allies | -11 -10 -10 -9 -9 -8 -7 -7 -7 -6 -6 -------- Run | Scr Mat Min Mat Sto Mat Fac Was Fac Fac Ext Total Allies 21 | . . 3 . . . . 18 . . . Largest Group 17 | . . 3 3 3 . . 17 12 7 7 Highest-Rated Group 442 | . . 40 40 40 . . 442 351 219 219 Highest-Rated Ally 35 | . . 16 16 16 . . 35 35 35 35 Total Orders . | . . . . . . . . . . . Ally Attacks 172 | . . . . 24 . . 111 21 . 16 Total Damage 4651 | . . . . 227 . . 3519 551 . 354 Kills 20 | . . . . 2 . . 10 6 . 2 Allies Corrupted . | . . . . . . . . . . . Allies Melted 1 | . . . . 1 . . . . . . Intel | -11 -10 -10 -9 -9 -8 -7 -7 -7 -6 -6 ------- Run | Scr Mat Min Mat Sto Mat Fac Was Fac Fac Ext Robot Analysis Total . | . . . . . . . . . . . Derelict Logs Recovered 1 | . . 1 . . . . . . . . Drone Launches . | . . . . . . . . . . . Drone Recoveries . | . . . . . . . . . . . Exploration | -11 -10 -10 -9 -9 -8 -7 -7 -7 -6 -6 ------------- Run | Scr Mat Min Mat Sto Mat Fac Was Fac Fac Ext Turns Passed 2529 | 74 126 386 17 625 278 169 154 260 139 301 Spaces Moved 1771 | 39 76 275 13 370 207 145 119 188 92 247 Core 118 | 2 . . . 1 . . . . . 115 Treads 194 | 37 76 81 . . . . . . . . Legs 805 | . . 194 13 330 . . . 44 92 132 Wheels 654 | . . . . 39 207 145 119 144 . . Hover . | . . . . . . . . . . . Flight . | . . . . . . . . . . . Fastest Speed 50 | 50 160 120 120 80 80 80 95 95 120 50 Average Speed 110 | 154 160 132 120 116 80 92 95 109 120 93 Slowest Speed 400 | 160 160 200 120 300 80 95 95 360 120 400 Overloaded Moves . | . . . . . . . . . . . Propulsion Burnouts . | . . . . . . . . . . . Robots Hopped . | . . . . . . . . . . . Cave-ins Triggered . | . . . . . . . . . . . Exploration Rate (%) 26 | 4 19 58 3 60 21 4 73 7 4 41 Regions Visited 10 Branch Regions 3 Pre-discovered Areas 1 | . . 1 . . . . . . . . Known Exits Taken . | . . . . . . . . . . . Unknown Exits Taken 8 | 1 1 1 1 1 1 . . 1 1 . Scrap Searched 1 | . . 1 . . . . . . . . Spaces Dug . | . . . . . . . . . . . Terrain Destroyed 2 | . . . . . . . 2 . . . Melee . | . . . . . . . . . . . Projectile . | . . . . . . . . . . . AOE 2 | . . . . . . . 2 . . . Terrain Rammed . | . . . . . . . . . . . Walls Destroyed . | . . . . . . . . . . . Machines Disabled . | . . . . . . . . . . . Actions | -11 -10 -10 -9 -9 -8 -7 -7 -7 -6 -6 --------- Run | Scr Mat Min Mat Sto Mat Fac Was Fac Fac Ext Total 2146 | 50 79 287 14 478 281 167 153 237 113 287 Wait 135 | . . . . 24 49 . 23 26 13 . Move 1763 | 38 76 274 12 369 206 145 118 187 91 247 Hop . | . . . . . . . . . . . Pick Up 15 | 6 2 1 . 1 . 1 . 1 . 3 Fast Attach 37 | 6 1 2 . 7 5 4 3 6 2 1 Attach 6 | . . . 2 1 1 . . . 1 1 Detach 7 | . . . . 4 . . . 2 . 1 Swap 7 | . . . . 2 . 4 . . . 1 Drop 30 | . . 3 . 7 2 4 3 7 . 4 Fire 137 | . . 5 . 63 18 9 6 5 6 25 Melee 4 | . . . . . . . . . . 4 Ram . | . . . . . . . . . . . Kick 4 | . . 1 . . . . . 3 . . Crush 1 | . . 1 . . . . . . . . Escape Stasis . | . . . . . . . . . . . Rewire . | . . . . . . . . . . . Trap . | . . . . . . . . . . . Miscellaneous . | . . . . . . . . . . . Route ------- -11/Scrapyard -10/Materials -10/Mines -9/Materials -9/Storage -8/Materials -7/Factory (discovered 2 exits: Low x2) -7/Waste -7/Factory -6/Factory -6/Extension (discovered 2 exits: [*Fac] / [*Cet]) History --------- Turn | Location | Event 14 | -11/Scrapyard | Discovered new exit (range 15) 75 | -11/Scrapyard | Entered Materials 130 | -10/Materials | Discovered new exit (range 16) 201 | -10/Materials | Entered Mines 210 | -10/Mines | Met a Derelict bent on vengeance 301 | -10/Mines | Build established: Mutant 304 | -10/Mines | Learned location of Mines (-8) 465 | -10/Mines | Assembled infested the area 562 | -10/Mines | Assisted by bots powering up and referring to "LRC-V3" 569 | -10/Mines | Discovered new exit (range 5) 587 | -10/Mines | Entered Materials 587 | -9/Materials | Accompanied by 3 allies 587 | -9/Materials | Evolved 2 slots: Propulsion x2 589 | -9/Materials | Discovered new exit (range 8) 604 | -9/Materials | Entered Storage 604 | -9/Storage | Accompanied by 3 allies 1218 | -9/Storage | Discovered new exit (range 6) 1229 | -9/Storage | Entered Materials 1229 | -8/Materials | Evolved 2 slots: Utility x2 1496 | -8/Materials | Discovered new exit (range 15) 1507 | -8/Materials | Entered Factory 1507 | -7/Factory | Evolved 2 slots: Power x1, Utility x1 1626 | -7/Factory | Identified exit to Lower Caves 1676 | -7/Factory | Sucked down chute 1676 | -7/Factory | Entered Waste 1684 | -7/Waste | Spotted C-40 Crusher 1702 | -7/Waste | Spotted C-40 Crusher 1703 | -7/Waste | Spotted C-40 Crusher 1703 | -7/Waste | Spotted C-40 Crusher 1710 | -7/Waste | Warlord forces began an assault 1716 | -7/Waste | Allies destroyed C-40 Crusher 1716 | -7/Waste | Spotted C-40 Crusher 1722 | -7/Waste | Spotted C-40 Crusher 1724 | -7/Waste | Allies destroyed C-40 Crusher 1725 | -7/Waste | Allies destroyed C-40 Crusher 1734 | -7/Waste | Allies destroyed C-40 Crusher 1738 | -7/Waste | Allies destroyed C-40 Crusher 1759 | -7/Waste | Allies destroyed C-40 Crusher 1799 | -7/Waste | Discovered new exit (range 10) 1830 | -7/Waste | Entered Factory 1830 | -7/Factory | Accompanied by 12 allies 1863 | -7/Factory | Build established: Scavenger-Mutant 2073 | -7/Factory | Discovered new exit (range 8) 2090 | -7/Factory | Entered another Factory area 2090 | -6/Factory | Accompanied by 7 allies 2090 | -6/Factory | Evolved 2 slots: Utility x2 2211 | -6/Factory | Discovered new exit (range 6) 2229 | -6/Factory | Entered Extension 2229 | -6/Extension | Accompanied by 7 allies 2368 | -6/Extension | Spotted B-75 Beast 2401 | -6/Extension | Destroyed B-75 Beast 2453 | -6/Extension | Spotted B-75 Beast 2506 | -6/Extension | Lost 13 parts (2p4n5u2w) 2516 | -6/Extension | Core integrity fell below 50% 2522 | -6/Extension | Discovered new exit (range 15) 2523 | -6/Extension | Discovered new exit (range 15) 2526 | -6/Extension | Core integrity fell below 20% 2530 | -6/Extension | Destroyed by H-61 Shepherd with Heavy Assault Cannon Last Messages --------------- 02456_ Force Rifle destroyed. 02456_ R-10 Processor collects Flak Gun. 02457_ R-10 Processor collects Imp. Medium Treads. 02459_ R-10 Processor collects Dynamic Insulation System. 02461_ Lgt. Armor Plating destroyed. 02471_ Sml. Storage Unit destroyed. 02472_ Y-54 Guardian destroyed. 02475_ Spear destroyed. 02478_ Knocked back. 02480_ Connecting with Door Terminal... 02480_ Current location identified: Extension 02480_ ALERT: Suspicious activity at Terminal E001. Dispatching Investigation squad. 02492_ EG-KB6(m) destroyed. 02492_ K-01 Serf destroyed. 02521_ Knocked back. 02522_ EXIT=FOUND 02523_ Slug penetrates Wall. 02525_ Knocked back. [Achievement: Achiever] Map ----- +----------------------------------------------------+ | ??????????????????????????????? | | ??????????????????????????????? | | ??????????????????????????????? | | ??????????????????????????????? | | ??????????????????????????????? | | ??????????????????????????????? | | ??????????????????????????????? | | ??????????????????????????????? | | ??????????????????????????????? | | ??????????????????????????????? | | ???????????????????????? ?????? | | ???????????????????????? ?????? | | ???????????????????????? ?????? | | ???????????????????????? ?????? | | ???????????????????????? ?????? | | ???????????????????????? ?????? | | ???????????????????????# #????? | | ???????????????????????# #????? | | ???????????????????????# #????? | | ???????????????????????# #????? | | ???????????????????????# #????? | | ???????????????????????#!#????? | | ???????????????????##### ####?? | | ?????????????####??# ""%"" #?? | | ##############""#### " " #?? | | % % @ * # | | ] % < # | | !# | | [H! ### | | ]# | | #################### / < # | | ???????????????????# ! ! # | | ???????????????????###" "#### | | ?????????????????????#" "#??? | | ?????????????????????#"""""#??? | | ??????????????????????######??? | | ??????????????????????????????? | | ??????????????????????????????? | | | | | | | | | | | | | | | | | | | | | | | | | +----------------------------------------------------+ Best States ------------- Heat Dissipation 70 Energy Generation 27 Energy Capacity 480 Matter Stores 300 Matter Capacity 300 Sight Range 16 Terrain Scan Density 10 Armor Coverage 525 Resistance: EX 50 Evasion (%) 55 Targeting Accuracy 6 Recoil Reduction 2 Item Schematics ----------------- None Robot Schematics ------------------ None Fabricated ------------ Nothing Alien Tech Used ----------------- None Achievements -------------- Achiever Backstab Challenges ------------ None Game ------ Seed DiametricInertialLog Manual? 0 Play Time 00:30:52 Cumulative 30.0 hours Start 2021.10.07 @ 20:10:24 End 2021.10.07 @ 20:43:55 Sessions 1 Manual Loads 0 Difficulty Rogue Special Mode None Game No. 88 Rogue 88 Adventurer 0 Explorer 0 Win Type - Total 0 Types 0/0/0/0/0/0/0/0/0 Lore% 29 Gallery% 36 Achievement% 25 Wizard Run 0 Options --------- ASCII 0 Keyboard 0 Movement Numpad Keybinds 0 Fullscreen 2 Font 18/TerminusBold Map View 76x50 Tactical HUD 1 Map Filters NONE Filters NONE Steam 1 RUN: e593d114-da32-45e1-9795-3a76caa134c2